fUST/lending_fUST_20250814
["ID","MTS","AMOUNT","RATE_DAILY","PERIOD"]
[379152439,1755167410543,460.0,0.00017321,2]
[379152440,1755167415465,460.0,0.00017321,2]
[379152441,1755167416181,580.29,0.00017321,2]
[379152442,1755167418960,460.0,0.00017321,2]
[379152443,1755167422198,460.0,0.00017321,2]
[379152444,1755167423907,460.0,0.00017321,2]
[379152445,1755167425915,460.0,0.0001732,2]
[379152446,1755167426487,885.83069224,0.0001654,2]
[379152447,1755167428157,219.44702494,0.0001732,2]
[379152448,1755167428181,2740.47297506,0.0001732,2]
[379152449,1755167428615,460.0,0.00017321,2]
[379152450,1755167430920,460.0,0.00017321,2]
[379152451,1755167431059,460.0,0.0001732,2]
[379152454,1755167432616,3543.32276898,0.00016719,2]
[379152455,1755167433183,460.0,0.0001732,2]
[379152456,1755167434439,460.0,0.00017321,2]
[379152457,1755167434849,460.0,0.00017321,2]
[379152458,1755167435061,460.0,0.00017321,2]
[379152487,1755167435392,460.0,0.00017321,2]
[379152492,1755167435486,-1932.1957051,0.00017322,2]
[379152500,1755167435597,-324.24879281,0.00017322,2]
[379152502,1755167435609,-5500.49481,0.00017322,2]
[379152515,1755167437845,-482.63023245,0.00017322,2]
[379152516,1755167437900,-64017.83405371,0.00017322,2]
[379152517,1755167437910,-555.87426465,0.00017328,2]
[379152518,1755167437920,-1470.2,0.00017418,3]
[379152519,1755167437930,-735.1,0.00017418,3]
[379152520,1755167437939,-715.5,0.00017418,3]
[379152521,1755167437948,-357.75,0.00017418,3]
[379152522,1755167437958,-178.87,0.00017418,3]
[379152523,1755167437968,-536.64,0.00017418,3]
[379152524,1755167437978,-713.79,0.00017418,3]
[379152525,1755167437987,-356.89,0.00017418,3]
[379152526,1755167437996,-178.45,0.00017418,3]
[379152527,1755167438006,-50000.0,0.00017418,2]
[379152528,1755167438015,-535.36,0.00017419,3]
[379152529,1755167438024,-555.87426464,0.00017422,2]
[379152530,1755167438034,-403.1822958,0.00017427,2]
[379152531,1755167438044,-500.0,0.00017427,2]
[379152532,1755167438054,-210.85869907,0.00017427,2]
[379152533,1755167438063,-500.0,0.00017427,2]
[379152534,1755167438072,-500.0,0.00017428,2]
[379152535,1755167438082,-460.0,0.00017428,2]
[379152536,1755167438093,-463.66717855,0.00017428,2]
[379152537,1755167438102,-460.0,0.00017428,2]
[379152538,1755167438111,-460.0,0.00017428,2]
[379152539,1755167438122,-460.0,0.00017428,2]
[379152540,1755167438132,-460.0,0.00017428,2]
[379152541,1755167438141,-460.0,0.00017428,2]
[379152542,1755167438151,-460.0,0.00017428,2]
[379152543,1755167438160,-461.95116986,0.00017428,2]
[379152544,1755167438169,-460.0,0.00017428,2]
[379152545,1755167438179,-460.0,0.00017428,2]
[379152546,1755167438188,-460.0,0.00017428,2]
[379152547,1755167438198,-460.0,0.00017428,2]
[379152548,1755167438207,-460.0,0.00017428,2]
[379152549,1755167438216,-460.0,0.00017428,2]
[379152550,1755167438227,-473.27,0.00017428,2]
[379152551,1755167438236,-460.0,0.00017428,2]
[379152552,1755167438245,-460.0,0.00017428,2]
[379152553,1755167438255,-502.17,0.00017428,2]
[379152554,1755167438265,-586.33,0.00017428,2]
[379152555,1755167438274,-460.0,0.00017428,2]
[379152556,1755167438283,-460.0,0.00017428,2]
[379152557,1755167438293,-460.0,0.00017428,2]
[379152558,1755167438302,-426.12725221,0.00017428,2]
[379152559,1755167438312,-460.0,0.00017428,2]
[379152560,1755167438321,-466.6819424,0.00017428,2]
[379152561,1755167438330,-465.54516556,0.00017428,2]
[379152562,1755167438340,-460.0,0.00017428,2]
[379152563,1755167438349,-213.10423497,0.00017428,2]
[379152564,1755167438359,-460.0,0.00017428,2]
[379152565,1755167438368,-460.0,0.00017428,2]
[379152566,1755167438378,-460.69102457,0.00017428,2]
[379152567,1755167438388,-460.0,0.00017428,2]
[379152568,1755167438398,-460.0,0.00017428,2]
[379152569,1755167438407,-509.85614979,0.00017428,2]
[379152570,1755167438418,-460.0,0.00017428,2]
[379152571,1755167438428,-460.0,0.00017428,2]
[379152572,1755167438438,-460.0,0.00017428,2]
[379152573,1755167438448,-478.31743784,0.00017428,2]
[379152574,1755167438458,-750.87,0.00017428,2]
[379152575,1755167438467,-512.73989057,0.00017428,2]
[379152576,1755167438477,-460.0,0.00017428,2]
[379152577,1755167438487,-460.0,0.00017428,2]
[379152578,1755167438497,-460.0,0.00017428,2]
[379152579,1755167438507,-460.0,0.00017428,2]
[379152580,1755167438516,-460.0,0.00017428,2]
[379152581,1755167438525,-163.31184418,0.00017428,2]
[379152582,1755167438536,-318.29626637,0.00017428,2]
[379152583,1755167438546,-460.0,0.00017428,2]
[379152584,1755167438555,-460.0,0.00017428,2]
[379152585,1755167438564,-381.46453786,0.00017428,2]
[379152586,1755167438574,-546.15,0.00017428,2]
[379152587,1755167438583,-460.0,0.00017428,2]
[379152588,1755167438592,-269.2830476,0.00017428,2]
[379152589,1755167438601,-460.0,0.00017428,2]
[379152590,1755167438611,-460.0,0.00017428,2]
[379152591,1755167438620,-460.73115981,0.00017428,2]
[379152592,1755167438630,-460.0,0.00017428,2]
[379152593,1755167438640,-500.0,0.00017428,2]
[379152594,1755167438649,-500.0,0.00017428,2]
[379152595,1755167438658,-460.0,0.00017428,2]
[379152596,1755167438667,-460.0,0.00017428,2]
[379152597,1755167438678,-1552.68,0.00017428,2]
[379152598,1755167438688,-460.0,0.00017428,2]
[379152599,1755167438697,-460.0,0.00017428,2]
[379152600,1755167438707,-494.52,0.00017428,2]
[379152601,1755167438716,-460.0,0.00017428,2]
[379152602,1755167438727,-461.53369864,0.00017428,2]
[379152603,1755167438736,-1414.67,0.00017428,2]
[379152604,1755167438745,-488.3,0.00017428,2]
[379152605,1755167438757,-1217.25,0.00017428,2]
[379152606,1755167438766,-460.0,0.00017428,2]
[379152607,1755167438776,-1157.83,0.00017428,2]
[379152608,1755167438785,-13916.51,0.00017428,2]
[379152609,1755167438794,-460.0,0.00017428,2]
[379152610,1755167438803,-460.0,0.00017428,2]
[379152611,1755167438812,-460.0,0.00017428,2]
[379152612,1755167438822,-1314.44,0.00017428,2]
[379152613,1755167438831,-1777.65,0.00017428,2]
[379152614,1755167438840,-460.0,0.00017428,2]
[379152615,1755167438850,-460.0,0.00017428,2]
[379152616,1755167438859,-460.0,0.00017428,2]
[379152617,1755167438868,-579.04,0.00017428,2]
[379152618,1755167438878,-719.03,0.00017428,2]
[379152619,1755167438887,-460.0,0.00017428,2]
[379152620,1755167438897,-460.0,0.00017428,2]
[379152621,1755167438907,-707.09,0.00017428,2]
[379152622,1755167438916,-460.0,0.00017428,2]
[379152623,1755167438925,-460.0,0.00017428,2]
[379152624,1755167438935,-10778.91,0.00017428,2]
[379152625,1755167438944,-460.0,0.00017428,2]
[379152626,1755167438954,-460.0,0.00017428,2]
[379152627,1755167438964,-460.0,0.00017428,2]
[379152628,1755167438973,-460.0,0.00017428,2]
[379152629,1755167438983,-12855.8,0.00017428,2]
[379152630,1755167438992,-460.0,0.00017428,2]
[379152631,1755167439001,-463.90207571,0.00017428,2]
[379152632,1755167439011,-3662.69,0.00017428,2]
[379152633,1755167439020,-460.0,0.00017428,2]
[379152634,1755167439211,-1104.7,0.00017428,2]
[379152635,1755167439225,-1028.76,0.00017428,2]
[379152636,1755167439235,-460.0,0.00017428,2]
[379152637,1755167439245,-299.1726966,0.00017428,2]
[379152638,1755167439254,-460.0,0.00017428,2]
[379152639,1755167439264,-1464.61,0.00017428,2]
[379152640,1755167439274,-515.21,0.00017428,2]
[379152641,1755167439283,-460.0,0.00017428,2]
[379152642,1755167439293,-582.42,0.00017428,2]
[379152643,1755167439302,-460.0,0.00017428,2]
[379152644,1755167439312,-460.0,0.00017428,2]
[379152645,1755167439321,-214.33755443,0.00017428,2]
[379152646,1755167439331,-460.0,0.00017428,2]
[379152648,1755167439341,-460.0,0.00017428,2]
[379152649,1755167439350,-460.0,0.00017428,2]
[379152650,1755167439359,-1993.19,0.00017428,2]
[379152651,1755167439368,-460.0,0.00017428,2]
[379152652,1755167439377,-1437.36,0.00017428,2]
[379152653,1755167439386,-1068.840739,0.00017429,2]
[379152654,1755167439395,-1068.840739,0.00017429,2]
[379152655,1755167439404,-57244.59558672,0.00017429,2]
[379152656,1755167439413,-555.87426464,0.00017515,2]
[379152657,1755167439422,-460.0,0.00017522,2]
[379152658,1755167439431,-1382.3,0.00017522,2]
[379152659,1755167439441,-1461.56,0.00017522,2]
[379152660,1755167439450,-2776.97,0.00017522,2]
[379152661,1755167439459,-460.0,0.00017522,2]
[379152662,1755167439468,-460.0,0.00017522,2]
[379152663,1755167439477,-4163.15,0.00017522,2]
[379152664,1755167439486,-460.0,0.00017522,2]
[379152665,1755167439495,-1114.66,0.00017522,2]
[379152666,1755167439504,-460.0,0.00017522,2]
[379152667,1755167439513,-468.38,0.00017522,2]
[379152668,1755167439522,-484.76315875,0.00017522,2]
[379152669,1755167439532,-4317.73,0.00017522,2]
[379152670,1755167439541,-467.4,0.00017522,2]
[379152671,1755167439550,-157.761,0.00017528,2]
[379152672,1755167439559,-151.0,0.00017528,2]
[379152673,1755167439569,-151.0,0.00017528,2]
[379152674,1755167439578,-460.0,0.00017528,2]
[379152675,1755167439587,-460.0,0.00017528,2]
[379152676,1755167439596,-684.56,0.00017528,2]
[379152677,1755167439605,-460.0,0.00017528,2]
[379152678,1755167439614,-282.23133412,0.00017528,2]
[379152679,1755167439623,-460.0,0.00017528,2]
[379152680,1755167439632,-460.0,0.00017528,2]
[379152681,1755167439642,-460.0,0.00017528,2]
[379152682,1755167439651,-460.0,0.00017528,2]
[379152683,1755167439660,-463.55970115,0.00017528,2]
[379152684,1755167439670,-1901.97,0.00017528,2]
[379152685,1755167439685,-460.0,0.00017528,2]
[379152686,1755167439694,-460.0,0.00017528,2]
[379152687,1755167439704,-460.0,0.00017528,2]
[379152688,1755167439714,-342.22252227,0.00017528,2]
[379152689,1755167439724,-460.0,0.00017528,2]
[379152690,1755167439733,-460.0,0.00017528,2]
[379152691,1755167439746,-731.69,0.00017528,2]
[379152692,1755167439756,-460.0,0.00017528,2]
[379152693,1755167439768,-460.0,0.00017528,2]
[379152694,1755167439778,-460.0,0.00017528,2]
[379152695,1755167439788,-460.0,0.00017528,2]
[379152696,1755167439797,-460.0,0.00017528,2]
[379152697,1755167439807,-461.81038637,0.00017528,2]
[379152698,1755167439816,-460.0,0.00017528,2]
[379152699,1755167439826,-1044.85,0.00017528,2]
[379152700,1755167439835,-460.0,0.00017528,2]
[379152701,1755167439844,-562.21,0.00017528,2]
[379152702,1755167439854,-460.0,0.00017528,2]
[379152703,1755167439864,-706.53,0.00017528,2]
[379152704,1755167439874,-772.56,0.00017528,2]
[379152705,1755167439888,-460.0,0.00017528,2]
[379152706,1755167439897,-460.0,0.00017528,2]
[379152707,1755167439907,-460.0,0.00017528,2]
[379152708,1755167439916,-460.0,0.00017528,2]
[379152709,1755167439926,-151.0,0.00017528,2]
[379152710,1755167439935,-460.0,0.00017528,2]
[379152711,1755167439945,-460.0,0.00017528,2]
[379152712,1755167439954,-460.0,0.00017528,2]
[379152713,1755167439964,-151.0,0.00017528,2]
[379152714,1755167439974,-790.59,0.00017528,2]
[379152715,1755167439984,-460.0,0.00017528,2]
[379152716,1755167439993,-460.0,0.00017528,2]
[379152717,1755167440002,-460.0,0.00017528,2]
[379152718,1755167440015,-460.0,0.00017528,2]
[379152719,1755167440024,-460.0,0.00017528,2]
[379152720,1755167440034,-1027.6,0.00017528,2]
[379152721,1755167440044,-460.0,0.00017528,2]
[379152722,1755167440054,-1319.98,0.00017528,2]
[379152723,1755167440064,-1026.7,0.00017528,2]
[379152724,1755167440074,-151.0,0.00017528,2]
[379152725,1755167440083,-275.389744,0.00017528,2]
[379152726,1755167440093,-998.78,0.00017528,2]
[379152727,1755167440102,-460.0,0.00017528,2]
[379152728,1755167440113,-460.0,0.00017528,2]
[379152729,1755167440123,-2364.22,0.00017528,2]
[379152730,1755167440132,-327.1744739,0.00017528,2]
[379152731,1755167440142,-1650.82,0.00017528,2]
[379152732,1755167440152,-1512.09,0.00017528,2]
[379152733,1755167440162,-460.0,0.00017528,2]
[379152734,1755167440171,-460.0,0.00017528,2]
[379152735,1755167440180,-460.0,0.00017528,2]
[379152736,1755167440190,-1716.05,0.00017528,2]
[379152737,1755167440199,-1188.97,0.00017528,2]
[379152738,1755167440209,-500.02,0.00017528,2]
[379152739,1755167440219,-1068.840739,0.00017528,2]
[379152740,1755167440229,-548.29,0.00017528,2]
[379152742,1755167440238,-1068.840739,0.00017528,2]
[379152743,1755167440248,-151.0,0.00017529,2]
[379152745,1755167440258,-151.0,0.00017529,2]
[379152746,1755167440267,-151.0,0.00017529,2]
[379152747,1755167440276,-151.487116,0.00017529,2]
[379152748,1755167440285,-151.0,0.00017529,2]
[379152749,1755167440295,-151.0,0.00017529,2]
[379152751,1755167440304,-151.290961,0.00017529,2]
[379152752,1755167440313,-390.05604,0.00017529,2]
[379152754,1755167440322,-390.05604,0.00017529,2]
[379152755,1755167440332,-151.0,0.00017529,2]
[379152756,1755167440341,-151.0,0.00017529,2]
[379152758,1755167440350,-151.0,0.00017529,2]
[379152759,1755167440359,-1068.840739,0.00017529,2]
[379152760,1755167440369,-1068.840739,0.00017529,2]
[379152761,1755167440378,-151.0,0.0001753,2]
[379152762,1755167440388,-151.0,0.0001753,2]
[379152763,1755167440397,-151.0,0.0001753,2]
[379152764,1755167440406,-570.27955588,0.0001753,2]
[379152765,1755167440416,-460.0,0.0001753,2]
[379152766,1755167440425,-460.0,0.0001753,2]
[379152767,1755167440435,-460.0,0.0001753,2]
[379152768,1755167440445,-460.0,0.0001753,2]
[379152769,1755167440454,-462.7629711,0.0001753,2]
[379152770,1755167440464,-151.0,0.0001753,2]
[379152771,1755167440473,-460.0,0.0001753,2]
[379152772,1755167440482,-581.91278033,0.0001753,2]
[379152773,1755167440491,-460.0,0.0001753,2]
[379152774,1755167440501,-183.69465096,0.0001753,2]
[379152775,1755167440510,-288.02377944,0.0001753,2]
[379152776,1755167440520,-460.0,0.0001753,2]
[379152777,1755167440529,-460.0,0.0001753,2]
[379152778,1755167440539,-460.0,0.0001753,2]
[379152779,1755167440549,-460.0,0.0001753,2]
[379152780,1755167440558,-600.91,0.0001753,2]
[379152781,1755167440568,-228.35510715,0.0001753,2]
[379152782,1755167440577,-460.0,0.0001753,2]
[379152783,1755167440587,-888.76,0.0001753,2]
[379152784,1755167440597,-525.16,0.0001753,2]
[379152785,1755167440607,-460.0,0.0001753,2]
[379152786,1755167440617,-390.05604,0.0001753,2]
[379152787,1755167440627,-390.05604,0.0001753,2]
[379152788,1755167440636,-151.0,0.0001753,2]
[379152789,1755167440645,-1059.43,0.0001753,2]
[379152790,1755167440655,-460.0,0.0001753,2]
[379152791,1755167440664,-464.48216711,0.0001753,2]
[379152792,1755167440677,-460.0,0.0001753,2]
[379152793,1755167440686,-480.72218901,0.0001753,2]
[379152794,1755167440696,-460.0,0.0001753,2]
[379152795,1755167440706,-460.0,0.0001753,2]
[379152796,1755167440717,-460.0,0.0001753,2]
[379152797,1755167440727,-362.48534818,0.0001753,2]
[379152798,1755167440736,-460.0,0.0001753,2]
[379152799,1755167440746,-151.0,0.0001753,2]
[379152800,1755167440755,-606.15,0.0001753,2]
[379152801,1755167440765,-460.0,0.0001753,2]
[379152802,1755167440774,-276.55187,0.0001753,2]
[379152803,1755167440783,-460.0,0.0001753,2]
[379152804,1755167440793,-460.0,0.0001753,2]
[379152805,1755167440802,-460.0,0.0001753,2]
[379152806,1755167440811,-461.82913372,0.0001753,2]
[379152807,1755167440821,-460.0,0.0001753,2]
[379152808,1755167440830,-460.0,0.0001753,2]
[379152809,1755167440840,-460.0,0.0001753,2]
[379152810,1755167440849,-460.0,0.0001753,2]
[379152811,1755167440858,-460.0,0.0001753,2]
[379152812,1755167440867,-460.0,0.0001753,2]
[379152813,1755167440875,-460.0,0.0001753,2]
[379152814,1755167440884,-460.0,0.0001753,2]
[379152815,1755167440893,-460.0,0.0001753,2]
[379152816,1755167440902,-460.0,0.0001753,2]
[379152817,1755167440911,-460.0,0.0001753,2]
[379152818,1755167440920,-460.0,0.0001753,2]
[379152819,1755167440929,-460.0,0.0001753,2]
[379152820,1755167440938,-460.0,0.0001753,2]
[379152821,1755167440947,-460.0,0.0001753,2]
[379152822,1755167440956,-151.0,0.00017531,2]
[379152823,1755167440966,-151.0,0.00017531,2]
[379152824,1755167440975,-151.0,0.00017531,2]
[379152825,1755167440985,-151.0,0.00017531,2]
[379152826,1755167440994,-151.0,0.00017531,2]
[379152827,1755167441003,-151.0,0.00017531,2]
[379152828,1755167441012,-151.0,0.00017531,2]
[379152829,1755167441021,-151.0,0.00017531,2]
[379152830,1755167441030,-151.0,0.00017531,2]
[379152831,1755167441040,-151.0,0.00017531,2]
[379152832,1755167441049,-151.0,0.00017531,2]
[379152833,1755167441058,-151.0,0.00017531,2]
[379152834,1755167441067,-151.0,0.00017531,2]
[379152835,1755167441077,-151.0,0.00017531,2]
[379152836,1755167441086,-151.0,0.00017531,2]
[379152837,1755167441095,-151.0,0.00017531,2]
[379152838,1755167441104,-500.0,0.00017531,2]
[379152839,1755167441113,-151.0,0.00017531,2]
[379152840,1755167441123,-500.0,0.00017531,2]
[379152841,1755167441132,-152.3066297,0.00017531,2]
[379152842,1755167441141,-500.0,0.00017531,2]
[379152843,1755167441151,-211.92498305,0.00017531,2]
[379152844,1755167441160,-283.66218537,0.00017531,2]
[379152845,1755167441169,-258.35408176,0.00017531,2]
[379152846,1755167441179,-500.0,0.00017531,2]
[379152847,1755167441189,-151.0,0.00017531,2]
[379152848,1755167441198,-151.0,0.00017533,2]
[379152849,1755167441208,-151.0,0.00017533,2]
[379152850,1755167441217,-151.0,0.00017533,2]
[379152851,1755167441227,-151.0,0.00017533,2]
[379152852,1755167441237,-151.0,0.00017533,2]
[379152853,1755167441246,-151.0,0.00017533,2]
[379152854,1755167441255,-218.85851884,0.00017543,2]
[379152855,1755167441264,-2631.46,0.00017594,2]
[379152856,1755167441273,-1127.57,0.00017594,2]
[379152857,1755167441284,-460.0,0.00017594,2]
[379152858,1755167441293,-5312.12,0.00017594,2]
[379152859,1755167441303,-460.0,0.00017594,2]
[379152860,1755167441313,-460.0,0.00017594,2]
[379152861,1755167441322,-2228.36,0.00017594,2]
[379152862,1755167441331,-3202.5,0.00017594,2]
[379152863,1755167441342,-520.94,0.00017594,2]
[379152864,1755167441351,-460.0,0.00017594,2]
[379152865,1755167441361,-973.99,0.00017594,2]
[379152866,1755167441371,-1376.46,0.00017594,2]
[379152867,1755167441380,-4318.68,0.00017594,2]
[379152868,1755167441389,-821.97,0.00017594,2]
[379152869,1755167441399,-588.33,0.00017594,2]
[379152870,1755167441409,-845.12,0.00017594,2]
[379152871,1755167441418,-648.48,0.00017594,2]
[379152872,1755167441427,-1462.79,0.00017594,2]
[379152873,1755167441437,-460.0,0.00017594,2]
[379152874,1755167441446,-613.05,0.00017594,2]
[379152875,1755167441455,-460.0,0.00017594,2]
[379152876,1755167441465,-460.0,0.00017594,2]
[379152877,1755167441474,-2959.92,0.00017594,2]
[379152878,1755167441484,-460.0,0.00017594,2]
[379152879,1755167441493,-460.0,0.00017594,2]
[379152880,1755167441503,-747.39,0.00017595,2]
[379152881,1755167441512,-460.0,0.00017595,2]
[379152882,1755167441522,-497.01,0.00017595,2]
[379152883,1755167441531,-460.0,0.00017595,2]
[379152884,1755167441540,-460.0,0.00017595,2]
[379152885,1755167441549,-699.73,0.00017595,2]
[379152886,1755167441559,-1477.22,0.00017595,2]
[379152887,1755167441569,-460.0,0.00017595,2]
[379152888,1755167441578,-2424.2,0.00017595,2]
[379152889,1755167441587,-466.24670623,0.00017595,2]
[379152890,1755167441596,-460.0,0.00017595,2]
[379152891,1755167441605,-460.0,0.00017595,2]
[379152892,1755167441616,-889.57,0.00017595,2]
[379152893,1755167441625,-460.0,0.00017595,2]
[379152894,1755167441634,-460.0,0.00017595,2]
[379152895,1755167441645,-702.4,0.00017595,2]
[379152896,1755167441655,-460.0,0.00017595,2]
[379152897,1755167441665,-460.0,0.00017595,2]
[379152898,1755167441677,-460.0,0.00017595,2]
[379152899,1755167441686,-460.0,0.00017595,2]
[379152900,1755167441695,-1133.0,0.00017595,2]
[379152901,1755167441705,-877.33,0.00017595,2]
[379152902,1755167441714,-624.43,0.00017595,2]
[379152903,1755167441725,-614.72,0.00017595,2]
[379152904,1755167441734,-1686.27,0.00017595,2]
[379152905,1755167441743,-1033.02,0.00017595,2]
[379152906,1755167441753,-460.0,0.00017595,2]
[379152907,1755167441763,-460.0,0.00017595,2]
[379152908,1755167441772,-1542.43,0.00017595,2]
[379152909,1755167441781,-916.82,0.00017595,2]
[379152910,1755167441790,-460.0,0.00017595,2]
[379152911,1755167441800,-990.11,0.00017595,2]
[379152912,1755167441809,-460.0,0.00017595,2]
[379152913,1755167441818,-1281.69,0.00017595,2]
[379152914,1755167441827,-225.77619203,0.00017595,2]
[379152915,1755167441836,-667.2,0.00017595,2]
[379152916,1755167441845,-460.0,0.00017595,2]
[379152917,1755167441854,-918.13,0.00017595,2]
[379152918,1755167441863,-460.0,0.00017595,2]
[379152919,1755167441872,-2475.54,0.00017595,2]
[379152920,1755167441881,-460.0,0.00017595,2]
[379152921,1755167441890,-460.0,0.00017595,2]
[379152922,1755167441900,-460.0,0.00017595,2]
[379152923,1755167441909,-460.0,0.00017595,2]
[379152924,1755167441918,-497.4,0.00017595,2]
[379152925,1755167441928,-704.52,0.00017595,2]
[379152926,1755167441938,-726.05,0.00017595,2]
[379152927,1755167441948,-908.15,0.00017595,2]
[379152928,1755167441957,-590.97,0.00017595,2]
[379152929,1755167441967,-460.0,0.00017595,2]
[379152930,1755167441976,-460.0,0.00017595,2]
[379152931,1755167441985,-460.0,0.00017595,2]
[379152932,1755167441994,-580.29,0.00017595,2]
[379152933,1755167442003,-460.0,0.00017595,2]
[379152934,1755167442013,-1068.840739,0.00017595,2]
[379152935,1755167442026,-460.0,0.00017595,2]
[379152936,1755167442035,-1068.840739,0.00017595,2]
[379152937,1755167442045,-460.0,0.00017595,2]
[379152938,1755167442055,-460.0,0.00017595,2]
[379152939,1755167442064,-460.0,0.00017595,2]
[379152940,1755167442074,-460.0,0.00017595,2]
[379152941,1755167442084,-460.0,0.00017595,2]
[379152942,1755167442093,-555.87426464,0.00017609,2]
[379152943,1755167442103,-1000.0,0.00017616,2]
[379152944,1755167442113,-1000.0,0.00017616,2]
[379152945,1755167442123,-1000.0,0.00017616,2]
[379152946,1755167442132,-1000.0,0.00017616,2]
[379152947,1755167442142,-1000.0,0.00017616,2]
[379152948,1755167442153,-1000.0,0.00017616,2]
[379152949,1755167442163,-1000.0,0.00017616,2]
[379152950,1755167442172,-528.75,0.00017616,2]
[379152951,1755167442182,-151.0,0.00017621,2]
[379152952,1755167442195,-151.0,0.00017621,2]
[379152953,1755167442205,-151.0,0.00017621,2]
[379152954,1755167442216,-151.0,0.00017621,2]
[379152955,1755167442226,-151.0,0.00017621,2]
[379152956,1755167442236,-151.0,0.00017621,2]
[379152957,1755167442246,-151.0,0.00017621,2]
[379152958,1755167442256,-17842.522448,0.00017621,2]
[379152959,1755167442267,-151.0,0.00017621,2]
[379152961,1755167442277,-151.0,0.00017621,2]
[379152962,1755167442286,-151.0,0.00017621,2]
[379152963,1755167442296,-151.0,0.00017621,2]
[379152964,1755167442305,-151.0,0.00017621,2]
[379152965,1755167442315,-151.0,0.00017621,2]
[379152966,1755167442324,-151.0,0.00017621,2]
[379152967,1755167442334,-151.0,0.00017621,2]
[379152968,1755167442343,-151.0,0.00017621,2]
[379152969,1755167442352,-151.0,0.00017621,2]
[379152970,1755167442362,-151.0,0.00017621,2]
[379152971,1755167442371,-151.0,0.0001763,2]
[379152972,1755167442381,-151.0,0.0001763,2]
[379152973,1755167442390,-151.0,0.0001763,2]
[379152974,1755167442399,-151.0,0.00017632,2]
[379152975,1755167442409,-151.0,0.00017632,2]
[379152976,1755167442419,-460.0,0.00017632,2]
[379152977,1755167442429,-460.76201245,0.00017632,2]
[379152978,1755167442438,-460.0,0.00017632,2]
[379152979,1755167442448,-460.0,0.00017632,2]
[379152980,1755167442457,-307.90121836,0.00017632,2]
[379152981,1755167442468,-460.0,0.00017632,2]
[379152982,1755167442477,-465.04070174,0.00017632,2]
[379152983,1755167442486,-460.0,0.00017632,2]
[379152984,1755167442496,-460.0,0.00017632,2]
[379152985,1755167442506,-460.61713777,0.00017632,2]
[379152986,1755167442515,-460.0,0.00017632,2]
[379152987,1755167442525,-476.57833351,0.00017632,2]
[379152988,1755167442534,-460.0,0.00017632,2]
[379152989,1755167442543,-460.0,0.00017632,2]
[379152990,1755167442552,-151.0,0.00017632,2]
[379152991,1755167442562,-199.083324,0.00017632,2]
[379152992,1755167442571,-398.85173787,0.00017632,2]
[379152993,1755167442581,-233.93880726,0.00017632,2]
[379152994,1755167442590,-460.0,0.00017632,2]
[379152995,1755167442600,-460.0,0.00017632,2]
[379152996,1755167442609,-460.0,0.00017632,2]
[379152997,1755167442619,-460.02790009,0.00017632,2]
[379152998,1755167442629,-460.0,0.00017632,2]
[379152999,1755167442639,-460.0,0.00017632,2]